bitfinex-derivatives/quotes_ETHF0:USTF0_20251220
["timestamp","ask_amount","ask_price","bid_price","bid_amount"]
[1766223515629,3.349,2986.3,2985.7,0.00502941]
[1766223526235,3.349,2986.3,2985.6,2.2016]
[1766223526830,2.34071041,2986.1,2985.5,3.349]
[1766223527228,2.34071041,2986.1,2985.5,3.35402941]
[1766223534746,3.349,2986.3,2985.5,3.35402941]
[1766223534938,2.34071041,2986.2,2985.5,3.35402941]
[1766223535243,2.34071041,2986.2,2985.5,0.00502941]
[1766223535643,2.34071041,2986.2,2985.5,3.35402941]
[1766223536844,2.34071041,2986.2,2985.5,0.00502941]
[1766223539848,3.349,2986.3,2985.5,0.00502941]
[1766223543040,3.349,2986.7,2985.6,2.34071041]
[1766223543242,3.349,2986.7,2985.7,3.349]
[1766223543942,2.34071041,2986.2,2985.8,3.349]
[1766223545742,2.34071041,2986.5,2985.8,3.349]
[1766223556955,5.68937828,2986.7,2985.8,3.349]
[1766223557555,5.68937828,2986.7,2985.5,0.00502941]
[1766223557743,5.68937828,2986.7,2985.6,3.349]
[1766223559857,3.349,2986.7,2985.6,3.349]
[1766223561664,3.349,2986.6,2985.6,3.349]
[1766223562755,5.68937828,2986.6,2985.6,3.349]
[1766223565464,2.3402708,2986.5,2985.6,3.349]
[1766223568370,3.349,2986.6,2985.6,3.349]
[1766223585990,3.349,2986.6,2985.8,2.3402708]
[1766223586290,3.35402941,2986.9,2985.9,3.349]
[1766223586676,5.69430021,2986.9,2985.9,3.349]
[1766223591885,3.35402941,2986.9,2985.9,3.349]
[1766223592086,3.35402941,2986.9,2986.0,2.3402708]
[1766223592792,3.35402941,2986.9,2985.9,5.68837053]
[1766223602294,3.35402941,2986.9,2985.9,3.349]
[1766223602500,5.69339994,2986.9,2985.9,3.349]
[1766223605506,2.33937053,2986.7,2985.5,0.00502941]
[1766223605704,2.33937053,2986.5,2985.6,5.418]
[1766223606001,2.33937053,2986.7,2985.6,5.418]
[1766223606393,2.33937053,2986.5,2985.7,9.227]
[1766223607004,2.33937053,2986.3,2985.5,0.00502941]
[1766223607205,2.33937053,2986.3,2985.6,3.349]
[1766223608295,2.33937053,2986.3,2985.5,0.00502941]
[1766223608500,2.33937053,2986.3,2985.6,3.349]
[1766223608896,2.33937053,2986.3,2985.5,0.00502941]
[1766223609104,2.33937053,2986.3,2985.6,3.349]
[1766223611805,5.68837053,2986.3,2985.6,3.349]
[1766223615809,3.349,2986.3,2985.6,3.349]
[1766223616803,3.249,2986.3,2985.6,3.349]
[1766223617011,3.349,2986.5,2985.6,3.349]
[1766223617606,5.68837053,2986.5,2985.6,3.349]
[1766223623412,0.00502941,2986.9,2985.9,2.33937053]
[1766223623613,0.00502941,2986.9,2986.1,2.33937053]
[1766223623820,0.00502941,2986.9,2986.2,3.349]
[1766223626913,2.33937053,2986.7,2986.2,3.349]
[1766223627119,0.00502941,2986.9,2986.0,3.349]
[1766223627120,2.33937053,2986.5,2986.0,3.349]
[1766223627416,2.34037157,2986.7,2986.0,3.349]
[1766223629621,2.34032443,2986.7,2986.0,3.349]
[1766223630422,2.34032443,2986.7,2985.5,0.00502941]
[1766223630615,2.34032443,2986.7,2985.6,3.349]
[1766223630816,2.34032443,2986.7,2985.7,3.349]
[1766223644933,3.349,2986.8,2985.7,3.349]
[1766223656144,3.349,2986.8,2985.8,3.349]
[1766223658547,2.34032443,2986.6,2985.8,3.349]
[1766223663143,3.349,2986.8,2985.8,3.349]
[1766223666639,5.68912855,2986.8,2985.8,3.349]
[1766223675758,5.68912855,2986.8,2985.7,2.621]
[1766223675759,5.68912855,2986.8,2985.5,0.00502941]
[1766223675953,5.68912855,2986.8,2985.6,3.349]
[1766223677860,5.68912855,2986.8,2985.5,0.00502941]
[1766223678162,5.68912855,2986.8,2985.6,3.349]
[1766223678163,2.34012855,2986.2,2985.6,3.349]
[1766223680560,3.349,2986.3,2985.6,3.349]
[1766223686060,2.34012855,2986.2,2985.6,3.349]
[1766223686369,2.34012855,2986.2,2985.5,0.00502941]
[1766223686668,3.349,2986.3,2985.5,0.00502941]
[1766223686865,2.34012855,2986.1,2985.5,0.00502941]
[1766223689072,3.349,2986.3,2985.5,0.00502941]
[1766223689467,2.34093261,2986.1,2985.5,0.00502941]
[1766223699072,2.34093261,2985.9,2985.5,0.00502941]
[1766223703085,2.34117132,2986.0,2985.5,0.00502941]
[1766223706389,3.349,2986.3,2985.5,0.00502941]
[1766223706390,2.34117132,2986.2,2985.5,0.00502941]
[1766223724099,3.349,2986.3,2985.5,0.00502941]
[1766223724296,5.69017132,2986.3,2985.5,0.00502941]
[1766223731402,3.349,2986.3,2985.5,0.00502941]
[1766223732610,5.69017132,2986.3,2985.5,0.00502941]
[1766223733104,3.349,2986.3,2985.5,0.00502941]
[1766223733706,3.349,2986.3,2985.5,2.34620073]
[1766223736396,3.349,2986.6,2985.7,2.34117132]
[1766223736599,3.349,2986.6,2985.8,3.349]
[1766223744913,3.349,2986.6,2985.8,5.68892977]
[1766223751410,3.349,2986.6,2985.8,3.349]
[1766223777042,3.349,2986.6,2985.5,0.00502941]
[1766223777243,3.349,2986.6,2985.5,0.02602941]
[1766223777538,2.33970643,2986.5,2985.5,0.51402941]
[1766223777846,2.33970643,2986.5,2985.6,3.349]
[1766223779343,2.33970643,2986.5,2985.5,0.51402941]
[1766223779344,2.33970643,2986.5,2985.5,0.00502941]
[1766223779545,2.33970643,2986.5,2985.6,3.349]
[1766223781149,3.349,2986.6,2985.6,3.349]
[1766223785156,2.33970643,2986.5,2985.6,3.349]
[1766223788559,2.33970643,2986.5,2985.5,3.35402941]
[1766223788759,2.33970643,2986.5,2985.5,1.98332941]
[1766223789658,2.33970643,2986.5,2985.7,0.00502941]
[1766223791966,2.33970643,2986.5,2985.5,3.349]
[1766223797470,2.33970643,2986.2,2985.5,3.349]
[1766223797669,3.349,2986.1,2985.5,3.349]
[1766223806273,0.00502941,2986.9,2985.5,3.349]
[1766223806577,15.10370643,2986.8,2985.5,3.349]
[1766223809177,2.33970643,2986.5,2985.5,3.349]
[1766223809476,3.349,2986.4,2985.5,3.349]
[1766223810877,3.349,2986.4,2985.1,1.39284363]
[1766223811072,3.349,2986.4,2985.2,3.349]
[1766223811473,2.34080059,2986.3,2985.2,3.349]
[1766223812979,5.68968294,2986.4,2985.2,5.68968294]
[1766223813978,5.68968294,2986.4,2985.2,2.34068294]
[1766223814180,5.68968294,2986.4,2985.3,3.349]
[1766223818783,3.349,2986.4,2985.4,2.34068294]
[1766223819383,5.68968294,2986.4,2985.4,2.34068294]
[1766223821282,5.68968294,2986.4,2985.2,2.34068294]
[1766223821475,5.68968294,2986.4,2985.3,3.349]
[1766223823585,3.349,2986.4,2985.4,2.34068294]
[1766223823788,3.349,2986.4,2985.6,2.34068294]
[1766223825286,3.349,2986.4,2985.6,5.68968294]
[1766223825679,3.349,2986.4,2985.6,3.349]
[1766223825879,5.68968294,2986.4,2985.6,3.349]
[1766223831097,3.349,2986.4,2985.6,3.349]
[1766223840704,0.00502941,2986.9,2985.6,3.349]
[1766223840898,11.723,2986.8,2985.8,2.34068294]
[1766223841095,9.29702941,2986.9,2986.0,2.34068294]
[1766223841300,3.349,2986.8,2985.8,2.34068294]
[1766223842516,3.349,2986.8,2985.6,5.68968294]
[1766223844209,2.34068294,2986.7,2985.6,5.68968294]
[1766223849126,3.349,2986.8,2985.7,2.33996909]
[1766223849421,3.349,2986.8,2985.9,2.33996909]
[1766223849624,3.349,2986.7,2986.1,2.33996909]
[1766223851624,3.349,2986.7,2985.9,5.68896909]
[1766223853821,3.349,2986.7,2985.9,7.00440811]
[1766223854229,3.349,2986.7,2986.1,2.33996909]
[1766223854625,3.35402941,2986.9,2986.3,2.33996909]
[1766223858729,3.35402941,2986.9,2986.2,3.349]
[1766223863534,3.35402941,2986.9,2986.3,2.33996909]
[1766223873336,3.35402941,2986.9,2986.2,3.349]
[1766223891152,3.35402941,2986.9,2985.7,1.34202356]
[1766223891354,3.35402941,2986.9,2985.8,3.349]
[1766223901370,3.35402941,2986.9,2985.5,2.33960041]
[1766223901664,3.35402941,2986.9,2985.6,3.349]
[1766223906169,3.35402941,2986.9,2985.8,2.33960041]
[1766223906372,3.35402941,2986.9,2985.9,3.349]
[1766223908566,3.35402941,2986.9,2985.9,4.65618408]
[1766223908771,3.35402941,2986.9,2985.9,3.349]
[1766223917982,2.33960041,2986.7,2985.7,1.2717269]
[1766223918182,3.349,2986.6,2985.8,3.349]
[1766223923781,3.349,2986.6,2985.7,4.6207269]
[1766223926282,3.349,2986.6,2985.7,1.2717269]
[1766223933399,5.68939858,2986.6,2985.7,1.2717269]
[1766223938993,2.34039858,2986.4,2984.8,8.30426775]
[1766223939299,3.349,2986.3,2985.3,2.34039858]
[1766223939496,3.349,2986.3,2985.4,3.349]
[1766223943603,3.349,2986.3,2985.4,0.849]
[1766223947503,3.349,2986.3,2985.5,2.34039858]
[1766223950505,3.349,2986.3,2985.4,3.18939858]
[1766223950699,3.349,2986.3,2985.4,5.52979716]
[1766223951806,3.349,2986.3,2985.4,3.18939858]
[1766223952810,3.349,2986.3,2985.4,0.68939858]
[1766223954710,3.349,2986.3,2985.4,3.349]
[1766223956715,3.349,2986.3,2985.3,1.19180046]
[1766223956902,3.349,2986.3,2985.4,3.349]
[1766223962124,3.349,2986.3,2985.4,5.68974774]
[1766223962324,3.349,2986.3,2985.4,3.349]
[1766223962524,3.349,2986.3,2985.4,5.68974774]
[1766223963628,3.349,2986.3,2985.4,2.34074774]
[1766223963820,3.349,2986.3,2985.5,3.35]
[1766223965124,3.349,2986.3,2985.4,2.34074774]
[1766223965315,3.349,2986.3,2985.5,3.35]
[1766223966019,3.349,2986.3,2985.4,2.34074774]
[1766223966214,3.349,2986.3,2985.5,3.35]
[1766223966932,3.349,2986.3,2985.5,5.69074774]
[1766223982738,3.349,2986.3,2985.7,2.34074774]
[1766223983145,2.0249,2986.3,2985.9,2.34074774]
[1766223983340,1.2517,2986.3,2985.9,2.34074774]
[1766223984144,1.0567,2986.3,2986.1,2.34074774]
[1766223984339,1.0567,2986.3,2985.5,3.35]
[1766223984545,1.0567,2986.3,2985.9,2.34074774]
[1766223993856,1.0567,2986.3,2985.9,2.33973956]
[1766223995352,1.0567,2986.3,2985.8,3.349]
[1766223998353,1.0567,2986.3,2985.6,2.33973087]
[1766223998556,1.0567,2986.3,2985.6,3.349]
[1766223998945,1.0567,2986.3,2985.0,2.50732087]
[1766223999250,1.0567,2986.3,2985.4,1.07459329]
[1766223999451,1.0567,2986.3,2985.5,3.349]
[1766224000560,1.0567,2986.3,2985.1,1.08401368]
[1766224000760,1.0567,2986.3,2985.4,3.349]
[1766224000961,1.0567,2986.3,2985.1,1.08401368]
[1766224001162,1.0567,2986.3,2985.2,3.349]
[1766224001456,1.0567,2986.3,2985.3,3.349]
[1766224003065,1.0567,2986.3,2985.1,1.08401368]
[1766224003265,1.0567,2986.3,2985.2,3.349]
[1766224003972,6.31343087,2986.3,2985.1,1.08401368]
[1766224004262,6.31343087,2986.3,2985.1,4.43301368]
[1766224004963,6.31343087,2986.3,2985.2,3.349]
[1766224005565,6.31343087,2986.3,2985.1,1.08401368]
[1766224005767,6.31343087,2986.3,2985.1,4.43301368]
[1766224019276,6.31343087,2986.3,2984.8,1.2050495]
[1766224019480,2.33973087,2985.7,2984.8,0.00426775]
[1766224019676,2.33973087,2986.0,2984.8,0.00426775]
[1766224019977,13.36,2985.9,2984.8,0.00426775]
[1766224020179,15.69973087,2985.9,2984.8,0.00426775]
[1766224020771,2.56555102,2986.3,2984.8,0.00426775]
[1766224020973,10.196,2985.8,2984.8,0.00426775]
[1766224021178,3.35,2985.7,2984.8,0.00426775]
[1766224030585,2.50725087,2986.3,2984.8,0.00426775]
[1766224030791,9.575,2985.9,2984.8,0.00426775]
[1766224030991,3.35,2985.8,2984.8,0.00426775]
[1766224031198,3.35,2985.8,2984.9,2.34091557]
[1766224031388,3.35,2985.7,2985.2,2.34091557]
[1766224031588,3.35,2985.7,2985.0,3.35]
[1766224057606,3.35,2985.7,2985.3,2.34068162]
[1766224067719,8.376,2986.4,2985.5,2.3402756]
[1766224068024,3.35,2986.3,2985.5,2.3402756]
[1766224075921,3.35,2986.3,2985.4,2.3402756]
[1766224083132,2.3402756,2986.5,2985.4,3.20521749]
[1766224083334,3.35,2986.4,2985.4,3.20521749]
[1766224083730,3.35,2986.4,2985.4,3.20564486]
[1766224084035,3.35,2986.4,2985.4,2.3402756]
[1766224095750,3.35,2986.4,2985.5,3.35]
[1766224096746,3.35,2986.4,2985.4,2.3402756]
[1766224096940,3.35,2986.4,2985.5,3.35]
[1766224098647,3.35,2986.4,2985.6,3.35]
[1766224099847,3.35,2986.4,2985.4,2.3402756]
[1766224100149,3.35,2986.4,2985.5,3.35]
[1766224100749,3.35,2986.4,2985.4,2.3402756]
[1766224101046,3.35,2986.4,2985.5,3.35]
[1766224101851,3.35,2986.4,2985.4,2.3402756]
[1766224102043,3.35,2986.4,2985.5,3.349]
[1766224107953,3.35,2986.4,2985.4,2.34045598]
[1766224108161,3.35,2986.4,2985.4,5.68945598]
[1766224119367,3.35,2986.4,2985.4,3.349]
[1766224132582,3.35,2986.4,2985.2,0.86651404]
[1766224132773,3.35,2986.4,2985.5,3.349]
[1766224132974,3.35,2986.4,2985.2,0.86233479]
[1766224132975,2.34027958,2986.3,2985.2,0.86233479]
[1766224133175,2.34027958,2986.3,2985.5,3.349]
[1766224134381,2.34027958,2986.3,2985.4,3.349]
[1766224135983,2.34027958,2986.3,2985.2,0.86658165]
[1766224136186,2.34027958,2986.3,2985.3,3.349]
[1766224139188,2.34027958,2986.3,2985.2,0.86256039]
[1766224139386,2.34027958,2986.3,2985.3,3.349]
[1766224140289,5.69090175,2986.4,2985.3,3.349]
[1766224142186,5.69090175,2986.4,2985.2,0.86305771]
[1766224142395,5.69090175,2986.4,2985.3,3.349]
[1766224144895,2.34090175,2986.2,2985.8,0.0008]
[1766224145088,3.35,2986.1,2985.8,0.0008]
[1766224145287,3.35,2986.1,2985.2,3.35]
[1766224145900,3.35,2986.1,2985.2,3.35291387]
[1766224149998,3.35,2986.1,2985.2,4.21286317]
[1766224150688,3.35,2986.1,2985.2,0.86286317]
[1766224152599,3.35,2986.1,2985.2,0.86739968]
[1766224154701,3.35,2986.1,2985.2,0.00291387]
[1766224181426,2.34127878,2986.0,2985.2,0.00291387]
[1766224183620,2.34127878,2986.0,2985.1,1.6065]
[1766224183927,2.34127878,2985.8,2984.9,3.35]
[1766224184115,3.35,2985.7,2984.9,3.35]
[1766224184521,3.35,2985.7,2984.9,0.00431805]
[1766224185733,2.34127878,2985.6,2984.9,0.00431805]
[1766224190333,2.34127878,2985.4,2984.9,0.00431805]
[1766224190537,5.69127878,2985.4,2984.9,0.00431805]
[1766224190833,3.35,2985.4,2984.9,0.00431805]
[1766224192335,3.35,2985.6,2984.9,0.00431805]
[1766224201640,0.05828907,2987.2,2984.9,0.00431805]
[1766224201845,2.34127878,2986.5,2985.0,3.35]
[1766224202045,3.35333178,2986.5,2985.2,2.34127878]
[1766224202343,2.34127878,2986.5,2985.4,2.34127878]
[1766224203046,12.588,2986.6,2985.6,2.34127878]
[1766224203546,2.34127878,2986.5,2985.4,2.34127878]
[1766224208956,2.34127878,2986.5,2985.5,2.34127878]
[1766224211946,2.34127878,2986.5,2985.3,5.69127878]
[1766224212146,2.34127878,2986.3,2985.3,3.35]
[1766224212340,3.35,2986.2,2985.3,3.35]
[1766224212547,3.35,2986.2,2985.3,6.57710878]
[1766224213550,3.35,2986.2,2985.3,6.56875388]
[1766224213950,5.6905244,2986.2,2985.3,4.22822948]
[1766224214649,5.6905244,2986.2,2985.3,3.35]
[1766224214850,5.6905244,2986.2,2985.3,4.23766902]
[1766224215754,5.6905244,2986.2,2985.3,3.35]
[1766224215958,5.6905244,2986.2,2985.3,4.23893305]
[1766224216254,5.6905244,2986.2,2985.3,3.35]
[1766224216654,5.6905244,2986.2,2985.3,4.23893305]
[1766224217346,5.6905244,2986.2,2985.3,3.35]
[1766224217547,5.6905244,2986.2,2985.3,4.23470784]
[1766224218157,5.6905244,2986.2,2985.3,4.24180231]
[1766224218758,5.6905244,2986.2,2985.3,3.35]
[1766224219054,5.6905244,2986.2,2985.3,4.24180231]
[1766224220857,5.6905244,2986.2,2985.3,3.35]
[1766224221058,2.3405244,2986.0,2985.0,0.88829557]
[1766224221352,3.35,2985.9,2985.1,3.35]
[1766224223258,3.35,2985.9,2985.0,0.88829557]
[1766224223460,3.35,2985.9,2985.1,3.35]
[1766224227161,2.3405244,2985.8,2985.0,0.88829557]
[1766224227457,2.3405244,2985.6,2985.0,0.88829557]
[1766224227654,5.6905244,2985.6,2985.0,0.88829557]
[1766224227858,5.6905244,2985.6,2984.9,0.00431805]
[1766224234556,3.35,2985.6,2984.9,0.00431805]
[1766224234763,3.35,2985.6,2984.9,2.34484245]
[1766224239865,3.35,2985.6,2984.9,0.00431805]
[1766224261896,3.35,2985.6,2984.7,4.0687344]
[1766224262597,2.34153543,2985.4,2984.3,0.04682613]
[1766224262786,0.00502941,2985.1,2984.3,0.04682613]
[1766224262982,0.00920109,2985.1,2984.4,3.35]
[1766224270188,0.00920109,2985.1,2984.3,0.00434941]
[1766224270189,0.00920109,2985.1,2984.3,3.35434941]
[1766224270393,3.35,2985.0,2984.3,4.07059058]
[1766224270693,3.35,2985.0,2984.3,3.35434941]
[1766224271996,3.35,2985.0,2984.3,4.09040737]
[1766224272901,3.35,2985.0,2984.3,3.35434941]
[1766224273092,3.35,2985.0,2984.3,4.09831563]
[1766224274699,3.35,2985.0,2984.3,3.35434941]
[1766224274896,3.35,2985.0,2984.3,4.09194734]
[1766224275899,3.35,2985.0,2984.3,3.35434941]
[1766224276100,3.35,2985.0,2984.3,4.08491879]
[1766224276498,3.35,2985.0,2984.3,3.35434941]
[1766224277595,3.35,2985.0,2984.3,4.08491879]
[1766224278401,3.35,2985.0,2984.3,3.35434941]
[1766224279200,3.35,2985.0,2984.3,4.07789615]
[1766224280897,3.35,2985.0,2984.3,3.35434941]
[1766224282003,3.35,2985.0,2984.3,4.08330364]
[1766224282503,3.35,2985.0,2984.3,3.35434941]
[1766224283201,3.35,2985.0,2984.3,4.07525711]
[1766224285106,3.35,2985.0,2984.3,3.35434941]
[1766224285306,3.35,2985.0,2984.3,4.07746522]
[1766224286609,3.35,2985.0,2984.3,3.35434941]
[1766224288005,3.35,2985.0,2984.3,4.08213541]
[1766224288606,3.35,2985.0,2984.3,4.09704125]
[1766224289298,3.35,2985.0,2984.3,0.00434941]
[1766224289504,3.35,2985.0,2984.3,0.72941568]
[1766224289700,3.35,2985.0,2984.3,0.00434941]
[1766224291506,5.69221615,2985.0,2984.3,0.00434941]
[1766224291700,5.69221615,2985.0,2983.5,0.26563985]
[1766224291701,5.69221615,2985.0,2984.0,3.351]
[1766224291897,5.69221615,2985.0,2984.0,4.07352739]
[1766224292703,5.69221615,2985.0,2984.0,4.07677313]
[1766224293001,5.69221615,2985.0,2984.0,0.72577313]
[1766224293201,2.34221615,2984.7,2984.0,0.72577313]
[1766224293507,3.351,2984.6,2984.0,0.72577313]
[1766224298915,3.351,2984.6,2984.0,0.00324574]
[1766224310031,3.351,2984.6,2984.0,2.34624263]
[1766224310323,0.00920109,2985.1,2984.0,2.34624263]
[1766224310532,3.351,2985.0,2984.1,3.351]
[1766224313134,3.351,2985.0,2984.2,2.34299689]
[1766224313727,3.351,2985.0,2984.1,3.351]
[1766224316133,3.351,2985.0,2984.4,2.34299689]
[1766224316332,3.351,2985.0,2984.5,3.351]
[1766224321741,0.00920109,2985.1,2984.8,2.34299689]
[1766224321931,1.09e-06,2985.1,2984.8,3.351]
[1766224322136,3.351,2985.3,2984.8,3.351]
[1766224323036,3.35966713,2985.3,2984.8,3.35602941]
[1766224324545,2.34136046,2986.1,2985.1,2.34136046]
[1766224324746,3.351,2986.0,2985.1,2.34136046]
[1766224324946,3.351,2986.0,2984.9,2.34136046]
[1766224325645,0.00502941,2985.7,2984.9,2.34136046]
[1766224330950,0.00502941,2985.7,2984.8,4.08185514]
[1766224331852,2.34638987,2985.7,2984.8,4.08185514]
[1766224332251,3.35,2985.6,2984.8,4.08185514]
[1766224333457,3.35,2985.6,2984.3,0.72591345]
[1766224333752,3.35,2985.6,2984.4,5.69136046]
[1766224334556,3.35,2985.6,2984.7,0.00502941]
[1766224334748,2.34136046,2985.5,2984.7,4.08154115]
[1766224334950,2.34136046,2985.1,2984.5,3.35]
[1766224335151,3.35,2985.2,2984.5,1.5013]
[1766224335352,3.35,2985.1,2984.3,4.07662529]
[1766224337653,3.35,2985.1,2984.3,0.72662529]
[1766224337854,3.35,2985.1,2984.4,3.35]
[1766224341050,5.69136046,2985.1,2984.4,3.35]
[1766224342555,5.69136046,2985.1,2984.3,0.72662529]
[1766224342851,5.69136046,2985.1,2984.3,4.07662529]
[1766224354367,3.35,2985.1,2984.3,4.07662529]
[1766224355765,3.351,2985.1,2984.4,2.34136046]
[1766224356067,3.351,2985.1,2984.3,3.35]
[1766224357966,3.351,2985.1,2984.3,5.69205871]
[1766224363474,3.351,2985.1,2984.3,3.35]
[1766224378989,3.351,2985.1,2984.2,0.72362068]
[1766224379184,3.351,2985.1,2984.3,3.351]
[1766224387800,3.351,2985.6,2984.4,2.34200747]
[1766224388000,3.351,2985.6,2984.4,3.07060782]
[1766224388302,3.351,2985.6,2984.4,2.34200747]
[1766224388889,3.351,2985.6,2984.4,3.07067367]
[1766224395904,3.351,2985.6,2984.5,2.34136738]
[1766224396103,3.351,2985.6,2984.6,3.35]
[1766224413721,3.351,2985.6,2984.7,3.35]
[1766224425435,2.3418915,2985.5,2984.7,3.35]
[1766224427728,2.3418915,2985.3,2984.6,3.35]
[1766224427926,5.6918915,2985.3,2984.6,3.35]
[1766224428231,3.35,2985.3,2984.6,3.35]
[1766224429233,3.35,2985.3,2984.4,0.7286662]
[1766224429534,3.35,2985.3,2984.5,3.35]
[1766224433740,3.35,2985.3,2984.5,5.69207643]
[1766224440654,3.35,2985.3,2984.5,3.35]
[1766224451966,5.69207643,2985.3,2984.4,0.7286662]
[1766224452262,5.69207643,2985.3,2984.5,3.35]
[1766224455365,3.35,2985.3,2984.5,3.35]
[1766224485680,2.34203146,2985.2,2984.0,8.30324574]
[1766224485882,2.34203146,2985.2,2984.1,3.35]
[1766224487082,2.34203146,2985.2,2984.1,4.07747073]
[1766224487382,5.6924898,2985.3,2984.1,3.35]
[1766224487571,5.6924898,2985.3,2984.1,4.07747073]
[1766224488985,5.6924898,2985.3,2984.1,4.06861357]
[1766224490175,3.35,2985.3,2984.1,3.35]
[1766224490377,3.35,2985.3,2984.1,4.07152108]
[1766224549425,3.35,2985.3,2984.1,6.41377173]
[1766224551429,3.35,2985.3,2984.1,4.07152108]
[1766224559336,3.35,2985.3,2984.2,2.34225065]
[1766224559538,3.35,2985.3,2984.4,2.34225065]
[1766224559733,3.35,2985.3,2984.5,3.351]
[1766224561539,2.34225065,2985.2,2984.5,3.351]
[1766224567839,2.34225065,2985.2,2984.1,0.72152108]
[1766224568032,2.34225065,2985.0,2984.2,3.351]
[1766224573238,3.35,2985.3,2984.2,3.351]
[1766224573540,5.69225065,2985.3,2984.2,3.351]
[1766224577544,2.34236641,2985.2,2984.2,3.351]
[1766224590157,2.34236641,2985.2,2984.1,0.72152108]
[1766224590457,2.34236641,2985.2,2984.2,3.351]
[1766224600464,3.351,2985.1,2984.2,3.351]
[1766224602867,2.34236641,2985.0,2984.2,3.351]
[1766224607265,2.34236641,2985.0,2984.1,0.72152108]
[1766224607472,2.34236641,2985.0,2984.3,3.351]
[1766224610471,2.34236641,2985.0,2984.3,4.07790875]
[1766224611373,3.351,2985.1,2984.3,4.07790875]
[1766224615472,2.34272492,2984.9,2984.3,0.72690875]
[1766224615674,3.351,2984.8,2984.3,0.72690875]
[1766224615874,3.351,2984.8,2984.0,0.00324574]
[1766224622179,2.34272492,2984.6,2984.0,0.00324574]
[1766224622484,3.351,2984.5,2983.8,3.351]
[1766224623582,3.351,2984.5,2983.8,3.35355768]
[1766224639807,3.351,2984.5,2983.8,0.00255768]
[1766224644515,2.34272492,2984.3,2983.8,0.00255768]
[1766224644713,3.351,2984.2,2983.8,0.00255768]
[1766224647718,3.351,2984.2,2983.5,4.12476894]
[1766224647913,0.00502941,2984.1,2983.5,0.77376894]
[1766224649019,0.00502941,2984.1,2983.5,0.77640597]
[1766224653021,0.00502941,2984.1,2983.5,4.12740597]
[1766224670037,0.00502941,2984.1,2983.5,0.7393001]
[1766224671438,2.34913176,2984.1,2983.5,0.7393001]
[1766224673538,2.34410235,2983.9,2983.5,0.00263703]
[1766224673737,2.34770888,2983.9,2983.5,0.00263703]
[1766224674635,0.00360653,2983.9,2983.5,0.00263703]
[1766224675536,3.35560653,2983.9,2983.5,0.00263703]
[1766224675739,5.69970888,2983.9,2983.5,0.00263703]
[1766224676239,5.69970888,2983.9,2983.2,0.73896954]
[1766224676537,5.69970888,2983.9,2983.2,4.09096954]
[1766224677239,5.69970888,2983.9,2983.2,4.09526926]
[1766224681344,5.69970888,2983.9,2983.2,0.74326926]
[1766224685845,3.35560653,2983.9,2983.2,0.74326926]
[1766224698466,3.35560653,2983.9,2983.3,2.34435893]
[1766224702966,3.35560653,2983.9,2983.2,0.74326926]
[1766224704362,3.35560653,2983.9,2983.2,0.00429972]
[1766224704570,3.35560653,2983.9,2982.0,0.73896954]
[1766224704571,2.34435893,2983.4,2982.0,0.73896954]
[1766224704764,4.94,2983.8,2982.0,3.34824049]
[1766224704765,2.34435893,2983.2,2982.0,3.34824049]
[1766224704964,3.352,2983.3,2982.2,2.34435893]
[1766224705167,3.352,2983.3,2982.4,2.34435893]
[1766224705770,3.352,2983.3,2982.4,2.34849227]
[1766224706169,3.352,2983.3,2982.4,0.00413334]
[1766224706365,3.352,2983.3,2982.4,2.34849227]
[1766224707465,3.352,2983.3,2982.5,3.352]
[1766224712876,3.352,2983.3,2982.6,2.34435893]
[1766224713168,3.352,2983.3,2982.8,2.34435893]
[1766224714371,3.352,2983.5,2982.8,5.69635893]
[1766224721784,3.352,2983.5,2982.9,2.34435893]
[1766224722082,3.352,2983.5,2982.9,2.34440704]
[1766224733498,3.352,2983.5,2982.8,3.352]
[1766224769116,3.352,2983.5,2983.0,2.34447331]
[1766224769321,2.216,2983.5,2983.0,2.34447331]
[1766224776046,2.216,2983.5,2982.8,3.352]
[1766224779942,3.352,2983.7,2982.8,3.352]
[1766224793552,3.352,2983.7,2982.8,5.69644772]
[1766224795653,3.352,2983.7,2982.8,5.69653658]
[1766224806066,3.352,2983.7,2982.8,3.352]
[1766224830476,3.352,2983.7,2982.8,5.69653658]
[1766224833475,3.352,2983.7,2982.8,5.6965199]
[1766224835287,3.352,2983.7,2982.8,3.352]
[1766224836188,5.6965199,2983.7,2982.8,3.352]
[1766224836388,3.352,2983.7,2982.6,0.71785389]
[1766224836690,2.3445199,2983.4,2982.7,3.352]
[1766224836880,3.352,2983.3,2982.7,3.352]
[1766224838078,3.352,2983.3,2982.5,0.7442589]
[1766224838390,2.3445199,2983.0,2982.5,4.0962589]
[1766224838580,2.3445199,2983.2,2982.5,4.0962589]
[1766224841982,2.3445199,2983.2,2982.5,0.7442589]
[1766224850099,2.3445199,2983.0,2982.5,0.7442589]
[1766224850295,5.6975199,2983.0,2982.5,0.7442589]
[1766224852500,5.6975199,2983.0,2982.4,0.00413334]
[1766224853394,3.353,2983.0,2982.5,0.72170686]
[1766224854409,3.353,2983.0,2982.4,0.00413334]
[1766224857208,5.69881238,2983.0,2982.3,4.09557075]
[1766224857512,5.69881238,2983.0,2982.3,3.353]
[1766224857713,3.353,2983.0,2982.3,4.09557075]
[1766224858208,3.353,2983.0,2982.3,0.74506493]
[1766224858415,5.69881238,2983.0,2982.3,0.74506493]
[1766224858819,5.69881238,2983.0,2982.3,0.74113523]
[1766224859710,5.69881238,2983.0,2982.3,0.00249418]
[1766224863616,2.34581238,2982.4,2981.9,0.71959205]
[1766224863813,0.00502941,2982.4,2981.7,3.353]
[1766224864421,0.00502941,2982.4,2981.7,3.35632951]